bitfinex/quotes_ETHUSD_20240713
["timestamp","ask_amount","ask_price","bid_price","bid_amount"]
[1720836954274,1.99747268,3131.8,3131.7,0.816]
[1720836954505,3.10336045,3131.8,3131.7,0.816]
[1720836955374,3.10335033,3131.8,3131.7,1.00814089]
[1720836955776,1.10630496,3131.8,3131.7,1.00814089]
[1720836956675,1.10630496,3131.8,3131.7,3.24334089]
[1720836956908,2.77013968,3131.8,3131.7,4.09120498]
[1720836957294,1.10630496,3131.8,3131.7,4.09120498]
[1720836957491,2.4373747,3131.8,3131.7,4.09120498]
[1720836958412,2.43721918,3131.8,3131.7,4.09120498]
[1720836958622,1.33106974,3131.8,3131.7,4.09120498]
[1720836958788,2.43722224,3131.8,3131.7,4.09120498]
[1720836960536,1.1061525,3131.8,3131.7,3.24334089]
[1720836960708,1.1061525,3131.8,3131.7,1.00814089]
[1720836960709,2.76981207,3131.8,3131.7,1.00814089]
[1720836960927,2.76981207,3131.8,3131.7,0.19214089]
[1720836961126,2.4875,3132.4,3131.7,1.00814089]
[1720836961331,1.66347145,3131.9,3131.7,1.00814089]
[1720836961527,1.1062322,3131.8,3131.7,1.00814089]
[1720836963222,2.76970365,3131.8,3131.7,1.00814089]
[1720836963426,2.76970365,3131.8,3131.7,0.19214089]
[1720836963630,3.4222322,3131.8,3131.7,0.19214089]
[1720836963814,3.96407199,3131.8,3131.5,0.816]
[1720836964015,1.66267828,3131.6,3131.5,0.816]
[1720836964214,1.1062322,3131.6,3131.5,0.816]
[1720836964411,1.66267828,3131.7,3131.5,0.816]
[1720836964747,1.10629889,3131.6,3131.5,0.816]
[1720836964947,2.76858954,3131.6,3131.5,0.816]
[1720836965253,2.76862045,3131.6,3131.5,0.816]
[1720836966367,2.43566152,3131.6,3131.5,0.816]
[1720836967715,2.43563722,3131.6,3131.5,0.816]
[1720836968018,2.43563591,3131.6,3131.5,0.816]
[1720836969233,1.10630419,3131.6,3131.5,3.05135]
[1720836969432,1.32933172,3131.8,3131.5,3.05135]
[1720836969675,1.10626225,3131.7,3131.5,3.05135]
[1720836969836,1.32933172,3131.8,3131.5,3.05135]
[1720836970040,1.10625149,3131.7,3131.5,3.05135]
[1720836970330,1.32933172,3131.8,3131.5,3.05135]
[1720836970535,1.10625532,3131.7,3131.5,3.05135]
[1720836970737,1.32933172,3131.8,3131.2,4.54232]
[1720836970937,2.43559085,3131.7,3131.6,0.816]
[1720836971366,2.43561467,3131.7,3131.6,0.816]
[1720836971875,2.43561467,3131.7,3131.6,3.05127]
[1720836972079,1.10628295,3131.7,3131.6,3.05127]
[1720836972368,1.10628295,3131.7,3131.6,0.816]
[1720836972538,1.10628295,3131.7,3131.6,1.00839439]
[1720836974466,1.10628295,3131.7,3131.6,0.19239439]
[1720836974668,2.72567788,3131.7,3131.6,0.19239439]
[1720836974909,5.08332866,3131.7,3131.4,0.816]
[1720836975199,2.43510363,3131.6,3131.5,0.19247903]
[1720836976593,1.10634577,3131.6,3131.5,0.19247903]
[1720836977476,3.49913641,3131.6,3131.5,0.19247903]
[1720836977804,1.83818908,3131.6,3130.5,4.54281]
[1720836978006,1.32801696,3131.2,3130.6,2.23597]
[1720836978301,3.89555277,3131.3,3131.1,0.816]
[1720836978497,1.10653226,3131.2,3131.1,0.816]
[1720836978706,2.43410962,3131.2,3131.1,0.816]
[1720836980209,1.10653226,3131.2,3131.1,0.816]
[1720836981210,1.1065038,3131.2,3131.1,0.816]
[1720836981506,1.10650747,3131.2,3130.8,2.23582]
[1720836981721,1.32757736,3131.3,3131.1,0.816]
[1720836981873,1.10651027,3131.2,3131.1,0.816]
[1720836984499,1.32757736,3131.4,3131.1,0.816]
[1720836984840,1.10650671,3131.3,3131.1,0.816]
[1720836985045,1.10650671,3131.2,3131.1,0.816]
[1720836985224,1.10650671,3131.3,3131.1,0.816]
[1720836987831,1.10650671,3131.3,3131.2,0.19282529]
[1720836988034,1.10650902,3131.3,3131.2,0.19282529]
[1720836988423,1.3263773,3131.4,3131.2,0.19282529]
[1720836988626,1.10651168,3131.3,3131.1,0.816]
[1720836988838,1.10651168,3131.2,3131.1,0.816]
[1720836991335,2.23536,3131.5,3131.1,0.816]
[1720836991606,1.32691128,3131.3,3131.1,0.816]
[1720836991824,1.10652059,3131.2,3131.1,0.816]
[1720836992025,2.43343187,3131.2,3130.9,0.816]
[1720836992238,1.10652059,3131.1,3130.9,0.816]
[1720836993212,2.43343187,3131.1,3130.9,0.816]
[1720836993413,1.10652059,3131.0,3130.9,0.816]
[1720836994644,1.32691128,3131.1,3130.9,0.816]
[1720836994844,1.1065509,3131.0,3130.9,0.816]
[1720836995340,2.43346218,3131.0,3130.9,0.816]
[1720836996141,2.43346218,3131.0,3130.6,0.816]
[1720836996142,1.97500999,3131.0,3130.6,0.816]
[1720836996313,2.43443432,3130.9,3130.6,0.816]
[1720836996515,1.1065509,3130.8,3130.6,0.816]
[1720836997041,1.1065509,3130.9,3130.7,0.19326348]
[1720836997219,1.10660544,3130.8,3130.7,0.19326348]
[1720836997426,1.10660544,3130.8,3130.7,0.816]
[1720836997633,1.10660544,3130.8,3130.7,1.00926348]
[1720836998039,1.32788342,3130.9,3130.7,3.24518348]
[1720836998215,1.10657835,3130.8,3130.7,3.24518348]
[1720836998619,1.32826332,3130.9,3130.8,2.23585]
[1720836998851,1.10654505,3130.9,3130.8,2.23585]
[1720836999154,2.43480837,3130.9,3130.8,2.4290436]
[1720836999653,2.43599189,3130.9,3130.8,2.4290436]
[1720837001128,2.43599189,3130.9,3130.8,2.23585]
[1720837001329,2.23543,3131.4,3130.8,2.42903663]
[1720837001630,1.32961157,3130.9,3130.8,2.42903663]
[1720837001927,2.4361498,3130.9,3130.8,3.24503663]
[1720837004879,2.43615835,3130.9,3130.8,3.24503663]
[1720837005263,1.10654678,3130.9,3130.8,3.24503663]
[1720837006165,2.43666522,3130.9,3130.8,3.24503663]
[1720837006482,1.10654678,3130.9,3130.8,3.79313129]
[1720837007657,1.10654678,3130.9,3130.8,6.02898129]
[1720837007855,1.10654678,3130.9,3130.8,8.33298129]
[1720837008068,2.3563,3131.5,3130.8,6.09713129]
[1720837008284,1.33054467,3130.9,3130.8,6.96888663]
[1720837008455,2.43701996,3130.9,3130.8,7.78488663]
[1720837008656,2.43702395,3130.9,3130.8,7.78488663]
[1720837009172,1.10647928,3130.9,3130.8,7.78488663]
[1720837011158,1.33054467,3131.1,3131.0,2.2357]
[1720837011362,1.33054467,3131.1,3131.0,3.0517]
[1720837011710,1.33054467,3131.1,3131.0,3.24473035]
[1720837011711,2.43695288,3131.1,3131.0,3.24473035]
[1720837012511,1.66427773,3131.2,3131.1,2.23563]
[1720837012807,2.77068549,3131.2,3131.1,2.23563]
[1720837013000,2.77068549,3131.2,3131.1,2.42857568]
[1720837015122,9.42733423,3131.6,3131.3,2.23545]
[1720837015288,1.10635251,3131.5,3131.4,0.816]
[1720837015874,1.10635251,3131.5,3131.4,1.0086769]
[1720837016770,1.10635251,3131.5,3131.4,3.2440969]
[1720837018294,2.4439,3131.7,3131.4,3.2440969]
[1720837018495,1.10632543,3131.5,3131.4,3.2440969]
[1720837018689,4.44211164,3131.7,3131.5,2.23535]
[1720837018894,1.10631578,3131.6,3131.5,2.23535]
[1720837021174,7.43,3131.9,3131.5,2.23535]
[1720837021299,1.99879071,3131.7,3131.6,0.816]
[1720837021651,3.10510436,3131.7,3131.6,0.816]
[1720837023302,3.10510436,3131.7,3131.3,4.47087]
[1720837023493,3.10510436,3131.6,3131.4,3.05141]
[1720837023726,1.10631365,3131.5,3131.4,3.05141]
[1720837023937,1.44072125,3131.8,3131.4,3.05141]
[1720837024125,1.99869646,3131.6,3131.4,3.05141]
[1720837024430,1.10633665,3131.5,3131.4,3.05141]
[1720837027638,1.99826812,3131.7,3131.4,3.05141]
[1720837027827,1.10633112,3131.6,3131.4,3.05141]
[1720837028015,1.10633112,3131.5,3131.4,3.05141]
[1720837031145,1.10635092,3131.5,3131.4,3.05141]
[1720837031561,1.10634888,3131.5,3131.4,3.05141]
[1720837032522,1.10634888,3131.5,3131.4,3.24131752]
[1720837034032,1.10634823,3131.5,3131.4,3.24131752]
[1720837034408,9.7496,3131.9,3131.4,3.24131752]
[1720837034612,1.99837063,3131.7,3131.6,0.816]
[1720837034936,1.10634816,3131.7,3131.6,1.00573823]
[1720837036046,1.10634816,3131.7,3131.6,3.24100823]
[1720837036254,2.77134989,3131.7,3131.6,6.26388305]
[1720837036453,2.43823319,3131.7,3131.6,8.66358305]
[1720837036617,1.10634816,3131.7,3131.6,8.66358305]
[1720837037137,1.10634816,3131.7,3131.6,7.87597823]
[1720837037342,2.77134989,3131.7,3131.6,7.87597823]
[1720837037820,1.99837063,3132.0,3131.6,7.87597823]
[1720837037821,1.99704217,3132.0,3131.8,2.23512]
[1720837038174,1.10622816,3131.9,3131.8,3.05112]
[1720837038850,1.10622816,3131.9,3131.8,0.816]
[1720837039020,1.10622816,3131.9,3131.7,2.23518]
[1720837039219,1.10622816,3131.8,3131.7,2.23518]
[1720837039457,1.10622816,3131.9,3131.7,2.23518]
[1720837039771,3.10327033,3131.9,3131.7,2.23518]
[1720837039922,1.10622816,3131.8,3131.7,2.23518]
[1720837040353,1.10622816,3131.9,3131.7,2.23518]
[1720837040929,4.31664217,3132.0,3131.7,2.23518]
[1720837041156,1.10625835,3131.9,3131.7,2.23518]
[1720837041457,1.10625835,3131.8,3131.7,2.23518]
[1720837041620,1.10624427,3131.8,3131.7,2.23518]
[1720837043955,1.10624444,3131.8,3131.7,2.23518]
[1720837044342,1.99688554,3132.0,3131.7,2.23518]
[1720837044659,1.10624407,3131.9,3131.7,2.23518]
[1720837044827,1.10624407,3131.8,3131.7,2.23518]
[1720837045025,1.10624407,3131.9,3131.7,2.42473268]
[1720837045227,1.10624407,3131.9,3131.7,2.23518]
[1720837046043,1.10624407,3131.9,3131.6,3.05127]
[1720837046230,1.66442109,3131.7,3131.6,3.05127]
[1720837046567,2.77066516,3131.7,3131.6,3.05127]
[1720837047265,1.10624407,3131.7,3131.6,3.05127]
[1720837047472,1.10624407,3131.8,3131.6,3.05127]
[1720837047666,1.10624407,3131.7,3131.6,3.05127]
[1720837047851,1.99746299,3131.9,3131.6,3.05127]
[1720837048055,1.10626568,3131.8,3131.6,3.05127]
[1720837048254,1.10626568,3131.7,3131.6,3.05127]
[1720837051248,1.99840505,3131.9,3131.6,3.05127]
[1720837051453,1.10624604,3131.8,3131.6,3.05127]
[1720837051685,1.99840505,3131.9,3131.6,3.05127]
[1720837051994,1.10624631,3131.8,3131.6,3.05127]
[1720837052155,1.10624631,3131.7,3131.6,3.05127]
[1720837054259,3.10506153,3131.8,3131.6,3.05127]
[1720837054478,1.10624659,3131.7,3131.6,3.05127]
[1720837054673,1.10624727,3131.7,3131.6,3.05127]
[1720837058156,1.10624723,3131.7,3131.6,3.05127]
[1720837059905,1.10624723,3131.7,3131.6,3.24090991]
[1720837061192,3.1064261,3131.7,3131.6,3.24090991]
[1720837061503,3.10708634,3131.7,3131.6,3.24090991]
[1720837061907,2.00062782,3131.7,3131.6,3.24090991]
[1720837062079,3.10687537,3131.7,3131.6,3.24090991]
[1720837064480,3.10694703,3131.7,3131.6,3.24090991]
[1720837064684,9.8047,3132.2,3131.6,3.24090991]
[1720837064909,2.00070394,3131.7,3131.6,3.24090991]
[1720837065078,3.1069514,3131.7,3131.6,3.24090991]
[1720837067906,1.10624746,3131.7,3131.6,3.24090991]
[1720837068125,2.00070394,3131.8,3131.6,3.24090991]
[1720837068282,2.00046545,3131.8,3131.7,4.6094]
[1720837068482,3.10669911,3131.8,3131.7,4.79895094]
[1720837068681,1.10623366,3131.8,3131.7,2.42475094]
[1720837068884,1.10623366,3131.8,3131.7,2.2352]
[1720837069180,3.10669911,3131.8,3131.7,2.42475094]
[1720837070984,1.64885357,3131.8,3131.7,0.18955094]
[1720837071592,1.64889382,3131.8,3131.7,0.18955094]
[1720837072012,0.54261991,3131.8,3131.7,0.18955094]
[1720837072330,1.64890528,3131.8,3131.6,0.816]
[1720837072532,0.54261991,3131.8,3131.6,0.816]
[1720837072734,1.10629105,3131.7,3131.6,0.816]
[1720837073637,1.10629105,3131.7,3131.4,0.816]
[1720837073892,2.0003145,3131.5,3131.4,0.816]
[1720837074057,3.10660555,3131.5,3131.4,0.816]
[1720837075042,1.10636878,3131.5,3131.4,0.816]
[1720837075284,3.10672487,3131.5,3131.4,0.816]
[1720837077592,3.10672487,3131.5,3131.4,1.0058566]
[1720837077947,3.10672487,3131.5,3131.4,3.2412766]
[1720837078469,2.3195,3131.9,3131.4,3.2412766]
[1720837078673,2.00062327,3131.5,3131.4,2.4252766]
[1720837078871,3.10695658,3131.5,3131.4,3.2412766]
[1720837079400,1.10633331,3131.5,3131.4,3.2412766]
[1720837082197,3.10719015,3131.5,3131.4,3.2412766]
[1720837083586,1.10633331,3131.5,3131.4,3.2412766]
[1720837083886,1.10633331,3131.5,3131.4,4.02637126]
[1720837084461,2.00093447,3131.7,3131.6,2.23524]
[1720837084769,3.10717008,3131.7,3131.6,3.24092732]
[1720837085091,3.10716126,3131.7,3131.6,3.24092732]
[1720837085284,3.10716126,3131.7,3131.6,0.18968732]
[1720837085473,3.54132749,3131.7,3131.6,0.18968732]
[1720837087152,2.4351,3131.7,3131.6,0.18968732]
[1720837087356,3.54141351,3131.7,3131.6,0.18968732]
[1720837087780,2.4351,3131.7,3131.6,0.18968732]
[1720837087986,3.54141202,3131.7,3131.6,0.18968732]
[1720837090562,1.10631202,3131.7,3131.6,0.18968732]
[1720837090982,1.10631202,3131.7,3131.6,1.00568732]
[1720837091183,2.4351,3131.9,3131.6,1.00568732]
[1720837091379,1.10631093,3131.7,3131.6,1.00568732]
[1720837091971,1.10631093,3131.7,3131.6,5.67985732]
[1720837092179,1.10631093,3131.7,3131.6,6.47137205]
[1720837092386,1.10631093,3131.7,3131.6,8.70664205]
[1720837094568,7.43,3132.2,3132.1,2.23492]
[1720837094799,10.53578958,3132.2,3132.1,3.05092]
[1720837095098,10.53577166,3132.2,3132.1,3.24014282]
[1720837095484,3.10577166,3132.2,3132.1,3.24014282]
[1720837095685,1.10604242,3132.2,3132.1,3.24014282]
[1720837097173,2.77162034,3132.2,3132.1,3.24014282]
[1720837097580,1.99812951,3132.5,3132.2,2.23479]
[1720837097881,1.99812951,3132.5,3132.4,0.816]
[1720837097882,1.99809045,3132.5,3132.4,0.816]
[1720837098087,3.10407994,3132.5,3132.4,0.816]
[1720837098678,1.10598902,3132.5,3132.4,0.816]
[1720837098885,3.10407994,3132.5,3132.4,0.816]
[1720837101209,7.43,3132.7,3132.4,0.816]
[1720837101382,1.1060215,3132.5,3132.4,0.816]
[1720837102900,1.1060215,3132.5,3132.4,3.0507]
[1720837103096,2.76990996,3132.5,3132.4,3.579242]
[1720837103404,2.76990996,3132.5,3132.4,5.813942]
[1720837103986,1.1060215,3132.5,3132.4,5.813942]
[1720837104586,1.99612287,3132.9,3132.6,2.23455]
[1720837104780,1.10591582,3132.8,3132.6,3.05055]
[1720837105109,7.43,3133.0,3132.7,2.23446]
[1720837105110,9.42614049,3133.0,3132.7,2.23446]
[1720837105306,1.10589502,3132.9,3132.7,2.23446]
[1720837105509,1.10589502,3132.8,3132.7,2.23446]
[1720837106307,1.10589502,3132.8,3132.7,4.70276]
[1720837106308,2.76871243,3132.8,3132.7,4.70276]
[1720837107110,1.10589502,3132.8,3132.7,6.93725]
[1720837107284,1.33007955,3132.9,3132.8,2.23442]
[1720837107478,2.43588011,3132.9,3132.8,3.05042]
[1720837107686,1.10580056,3132.9,3132.8,3.23888977]
[1720837107904,1.33007955,3133.0,3132.8,3.23888977]
[1720837107905,1.33007955,3133.0,3132.9,2.23435]
[1720837108108,1.33007955,3133.0,3132.8,3.23888977]
[1720837108109,1.10574434,3132.9,3132.8,5.28484]
[1720837108291,1.33007086,3133.1,3133.0,4.46856]
[1720837108497,2.43578989,3133.1,3133.0,5.28456]
[1720837108803,2.43538136,3133.1,3133.0,5.28456]
[1720837109185,1.10571903,3133.1,3133.0,5.28456]
[1720837109380,2.43538136,3133.1,3133.0,5.28456]
[1720837109600,1.10571903,3133.1,3133.0,2.23428]
[1720837109805,2.76830761,3133.1,3133.0,2.23428]
[1720837110013,1.10571903,3133.1,3133.0,2.23428]
[1720837110198,2.43487079,3133.1,3133.0,2.23428]
[1720837111213,2.43487079,3133.1,3133.0,4.46856]
[1720837111387,1.66107085,3133.4,3133.2,2.23413]
[1720837111582,1.10572379,3133.3,3133.2,2.23413]
[1720837111783,2.76679464,3133.3,3133.2,2.23413]
[1720837112184,2.4341408,3133.3,3133.2,2.23413]
[1720837112502,1.10572379,3133.3,3133.2,2.23413]
[1720837113085,2.43368656,3133.3,3133.2,2.23413]
[1720837114637,1.32796277,3133.3,3133.2,5.230871]
[1720837114922,1.32770298,3133.5,3133.3,2.23406]
[1720837115215,1.32770298,3133.6,3133.4,0.816]
[1720837115419,1.10566002,3133.5,3133.4,0.816]
[1720837116209,1.10566002,3133.5,3133.4,3.04999]
[1720837116633,1.10566002,3133.5,3133.4,3.23783272]
[1720837117114,1.10566002,3133.5,3133.4,5.47182272]
[1720837117313,1.32770298,3133.8,3133.6,2.23378]
[1720837117489,1.10557936,3133.7,3133.6,3.04978]
[1720837117918,1.1055487,3133.7,3133.6,3.04978]
[1720837118092,1.32770298,3133.9,3133.6,0.816]
[1720837118300,2.43328251,3133.8,3133.6,0.816]
[1720837118611,1.10557953,3133.7,3133.6,2.23385]
[1720837120587,1.10557953,3133.7,3133.4,3.04994]
[1720837121319,1.10557953,3133.7,3133.5,2.2339]
[1720837121499,1.10561708,3133.6,3133.5,2.2339]
[1720837122487,1.10561708,3133.6,3133.5,2.42163432]
[1720837123521,2.43332006,3133.6,3133.5,0.18773432]
[1720837123706,2.43332006,3133.6,3133.2,0.816]
[1720837124025,1.10561708,3133.5,3133.2,0.816]
[1720837124207,1.10561708,3133.5,3133.3,0.18786378]
[1720837124697,1.32770298,3133.6,3133.3,0.18786378]
[1720837124897,1.10570573,3133.5,3133.3,0.18786378]
[1720837125206,1.32770298,3133.6,3133.3,0.18786378]
[1720837125524,1.10571462,3133.5,3133.3,0.18786378]
[1720837125725,1.10571462,3133.4,3133.3,0.18786378]
[1720837127926,1.32770298,3133.5,3133.3,0.18786378]
[1720837128296,1.1057148,3133.4,3133.3,0.18786378]
[1720837130729,2.43341778,3133.4,3133.3,0.18786378]
[1720837131052,1.1057148,3133.4,3133.3,0.18786378]
[1720837131246,2.43341778,3133.4,3133.3,0.18786378]
[1720837131750,2.43344061,3133.4,3133.3,0.18786378]
[1720837132858,2.43271627,3133.4,3133.3,0.18786378]
[1720837133657,1.10572948,3133.4,3133.3,0.18786378]
[1720837134152,2.43271627,3133.4,3133.3,0.18786378]
[1720837135052,1.32698679,3133.4,3133.3,0.18786378]
[1720837135258,2.43273114,3133.4,3133.3,0.18786378]
[1720837135625,1.32698679,3133.4,3133.3,0.18786378]
[1720837135842,2.43273144,3133.4,3133.3,0.18786378]
[1720837136150,1.10574465,3133.4,3133.3,0.18786378]
[1720837137217,2.76579879,3133.4,3133.3,0.18786378]
[1720837137656,1.10574465,3133.4,3133.3,0.18786378]
[1720837137864,2.76579879,3133.4,3133.3,0.18786378]
[1720837138222,2.76749905,3133.4,3133.3,0.18786378]
[1720837138427,2.2846,3133.7,3133.3,0.18786378]
[1720837138628,2.76749755,3133.4,3133.3,0.18786378]
[1720837139357,1.10574907,3133.4,3133.3,0.18786378]
[1720837141227,1.10574178,3133.4,3133.3,0.18786378]
[1720837142562,5.40872524,3133.4,3133.3,0.18786378]
[1720837142746,2.3079,3133.3,3131.7,4.64034]
[1720837142953,1.32989734,3132.2,3132.1,0.816]
[1720837143254,1.10574178,3132.2,3132.1,0.18888301]
[1720837143930,1.10574178,3132.3,3131.7,0.816]
[1720837144133,1.66166867,3131.8,3131.7,0.816]
[1720837144328,2.3079,3132.1,3131.5,0.816]
[1720837144652,1.66089158,3131.7,3131.5,0.816]
[1720837144849,1.10634149,3131.6,3131.5,0.816]
[1720837145043,2.7671966,3131.6,3131.5,0.816]
[1720837145241,2.43439696,3131.6,3131.5,0.816]
[1720837147155,1.10634149,3131.6,3131.5,0.816]
[1720837147345,1.32805547,3131.7,3131.5,0.816]
[1720837148256,1.32805547,3131.8,3131.5,0.816]
[1720837148451,2.43439519,3131.7,3131.5,0.816]
[1720837148658,1.32805547,3131.8,3131.5,0.816]
[1720837148852,1.10634759,3131.7,3131.5,0.816]
[1720837149059,1.32805547,3131.8,3131.5,0.816]
[1720837150239,1.32805547,3131.9,3131.5,0.816]
[1720837150461,1.10635066,3131.8,3131.5,0.816]
[1720837150649,1.32805547,3131.9,3131.5,0.816]
[1720837150860,1.10635079,3131.8,3131.5,0.816]
[1720837151057,1.32805547,3131.8,3131.5,0.816]
[1720837151257,1.32805547,3131.9,3131.5,0.816]
[1720837151449,1.10635384,3131.8,3131.5,0.816]
[1720837151653,1.32805547,3131.9,3131.7,0.816]
[1720837151849,3.96351455,3132.1,3131.7,0.816]
[1720837151850,1.32805547,3132.1,3131.7,0.816]
[1720837152059,9.08561455,3132.2,3131.7,0.816]
[1720837152060,8.75805547,3132.2,3131.9,0.816]
[1720837152374,7.43,3132.2,3132.1,0.816]
[1720837152570,8.53618956,3132.2,3132.1,0.816]
[1720837152769,7.43,3132.2,3132.1,1.00510873]
[1720837154444,7.38,3132.2,3132.1,1.00510873]
[1720837154644,7.38,3132.2,3132.1,0.18910873]
[1720837154846,7.38,3132.2,3131.9,0.816]
[1720837155047,1.32805547,3132.4,3132.1,0.18910873]
[1720837155246,1.32805547,3132.4,3131.9,0.816]
[1720837155247,1.10618118,3132.3,3131.9,0.816]
[1720837155447,1.32805547,3132.4,3132.2,0.18902412]
[1720837155657,1.10618024,3132.3,3131.9,0.816]
[1720837155859,1.32805547,3132.4,3131.9,0.816]
[1720837156179,1.10618012,3132.3,3131.9,0.816]
[1720837156343,1.32805547,3132.4,3131.9,0.816]
[1720837156544,1.10617998,3132.3,3131.9,0.816]
[1720837156755,1.32805547,3132.4,3131.9,0.816]
[1720837156955,1.1061802,3132.3,3131.9,0.816]
[1720837157156,1.32805547,3132.4,3131.9,0.816]
[1720837157378,1.10617935,3132.3,3131.9,0.816]
[1720837157581,1.32805547,3132.4,3131.9,0.816]
[1720837157780,7.38,3132.7,3131.9,0.816]
[1720837157948,1.32430114,3132.4,3131.9,0.816]
[1720837158293,0.33411952,3132.6,3132.3,0.816]
[1720837158447,1.10606334,3132.5,3132.3,0.816]
[1720837158642,0.33411952,3132.6,3132.3,0.816]
[1720837158849,1.1060433,3132.5,3132.3,0.816]
[1720837159048,0.33411952,3132.6,3132.1,0.816]
[1720837159348,1.10607733,3132.5,3132.1,0.816]
[1720837159674,0.33411952,3132.6,3132.3,0.816]
[1720837160179,1.10604015,3132.5,3132.3,0.816]
[1720837160382,0.33411952,3132.6,3132.3,0.816]
[1720837160675,1.10604235,3132.5,3132.3,0.816]
[1720837160879,0.33411952,3132.6,3132.3,0.816]
[1720837161275,1.10604103,3132.5,3132.3,0.816]
[1720837161479,0.33411952,3132.6,3132.3,0.816]
[1720837161778,1.1060407,3132.5,3132.3,0.816]
[1720837161983,0.33411952,3132.6,3132.3,0.816]
[1720837162196,1.10603919,3132.5,3132.3,0.816]
[1720837162410,0.33411952,3132.6,3132.3,0.816]
[1720837162556,1.106039,3132.5,3132.3,0.816]
[1720837162756,0.33411952,3132.6,3132.3,0.816]
[1720837163073,1.10603936,3132.5,3132.3,0.816]
[1720837163261,0.33411952,3132.6,3132.3,1.4214868]
[1720837163464,1.10603062,3132.5,3132.3,1.4214868]
[1720837163649,0.33411952,3132.6,3132.3,1.4214868]
[1720837163854,1.10602936,3132.5,3132.3,1.4214868]
[1720837164054,0.33411952,3132.6,3132.3,1.4214868]
[1720837164267,1.10602871,3132.5,3132.3,1.4214868]
[1720837164585,1.10604837,3132.4,3132.3,1.4214868]
[1720837164957,0.33411952,3132.6,3132.3,1.4214868]
[1720837165155,1.10603726,3132.5,3132.3,1.4214868]
[1720837165375,0.33411952,3132.6,3132.3,1.4214868]
[1720837165576,1.10601712,3132.5,3132.3,1.4214868]
[1720837165786,1.10601712,3132.4,3132.3,1.4214868]
[1720837165971,0.33411952,3132.6,3132.3,1.4214868]
[1720837166160,1.10602484,3132.5,3132.3,1.4214868]
[1720837166365,1.10602484,3132.4,3132.3,1.4214868]
[1720837166561,1.10602484,3132.4,3132.1,2.23491]
[1720837166880,1.10607444,3132.3,3132.1,2.23491]
[1720837167084,1.10607321,3132.2,3132.1,2.23491]
[1720837167785,1.65842917,3132.6,3132.1,2.42397393]
[1720837167983,1.10607514,3132.2,3132.1,2.42397393]
[1720837168289,1.10608635,3132.2,3132.1,2.97147432]
[1720837168473,1.10608635,3132.2,3132.1,5.35947432]
[1720837169373,1.10608635,3132.2,3132.1,0.18906393]
[1720837169960,1.10608635,3132.2,3131.9,3.05103]
[1720837170168,3.72000965,3132.4,3132.1,0.18906393]
[1720837170367,1.10614007,3132.3,3132.0,0.18914854]
[1720837170568,3.72000965,3132.4,3132.2,0.18897932]
[1720837170769,1.10614777,3132.3,3132.1,0.18906393]
[1720837171088,1.10614777,3132.2,3131.9,3.05103]
[1720837171294,1.10614805,3132.1,3131.9,3.05103]
[1720837171492,1.10614805,3132.0,3131.9,3.05103]
[1720837171791,1.10614805,3132.0,3131.9,3.356133]
[1720837173291,1.10614805,3132.0,3131.9,3.05103]
[1720837174597,1.32430965,3132.3,3131.9,3.05103]
[1720837174762,1.1061532,3132.2,3131.9,3.05103]
[1720837174963,1.1061532,3132.1,3131.9,3.05103]
[1720837175165,1.1061532,3132.0,3131.9,3.05103]
[1720837176362,1.1061532,3132.0,3131.9,0.816]
[1720837176567,1.1061532,3132.0,3131.7,2.2352]
[1720837176762,1.65774641,3132.4,3131.9,0.816]
[1720837176763,1.32430965,3132.3,3131.9,0.816]
[1720837176992,1.10614374,3132.2,3131.9,0.816]
[1720837177178,1.10614374,3132.1,3131.9,0.816]
[1720837177389,1.10614374,3132.0,3131.7,2.2352]
[1720837177570,1.32430965,3132.3,3131.9,0.816]
[1720837177768,1.10614126,3132.2,3131.9,0.816]
[1720837178185,1.10614148,3132.1,3131.9,0.816]
[1720837178396,1.10614148,3132.0,3131.9,0.816]
[1720837178567,1.10614446,3132.0,3131.9,0.816]
[1720837180867,1.10614202,3132.0,3131.9,0.816]
[1720837181474,1.32430965,3132.1,3131.9,0.816]
[1720837181678,1.10617152,3132.0,3131.9,0.816]
[1720837182802,1.10617152,3132.0,3131.9,1.0052573]
[1720837184803,1.10612597,3132.0,3131.9,3.78787003]
[1720837184996,1.10612597,3132.0,3131.9,6.20047003]
[1720837186001,1.10612597,3132.0,3131.9,8.43553003]
[1720837187011,1.32430965,3132.5,3132.4,2.4126]
[1720837187193,1.66072476,3132.6,3132.4,2.4126]
[1720837187194,1.32430965,3132.6,3132.5,2.23463]
[1720837187391,2.4302082,3132.6,3132.5,2.23463]
[1720837187592,1.10589855,3132.6,3132.5,2.42329807]
[1720837188124,1.10590102,3132.6,3132.5,2.42329807]
[1720837188332,2.76795428,3132.6,3132.5,2.42329807]
[1720837188545,10.13975701,3133.1,3132.5,2.42329807]
[1720837188826,1.66256869,3132.6,3132.5,2.42329807]
[1720837189020,2.76846976,3132.6,3132.5,3.23929807]
[1720837189185,1.10590107,3132.6,3132.5,3.23929807]
[1720837190005,2.43585269,3132.6,3132.5,3.92590346]
[1720837190191,1.10590107,3132.6,3132.5,3.92590346]
[1720837190810,1.32995162,3132.8,3132.7,2.23449]
[1720837191134,1.10582006,3132.8,3132.7,3.2389889]
[1720837191281,2.43552533,3132.8,3132.7,3.2389889]
[1720837191483,2.43552671,3132.8,3132.7,3.2389889]
[1720837192285,2.76794191,3132.8,3132.7,3.2389889]
[1720837193038,1.1058349,3132.8,3132.7,3.2389889]
[1720837194111,2.76791852,3132.8,3132.7,3.2389889]
[1720837194310,1.1058349,3132.8,3132.7,3.2389889]
[1720837194647,2.76791852,3132.8,3132.7,3.2389889]
[1720837194940,2.76820634,3132.8,3132.7,3.2389889]
[1720837198386,2.76903254,3132.8,3132.7,3.2389889]
[1720837198709,2.76903204,3132.8,3132.7,3.2389889]
[1720837198916,2.7690422,3132.8,3132.7,3.2389889]
[1720837201148,2.76929279,3132.8,3132.7,3.2389889]
[1720837201446,1.99611482,3133.0,3132.7,2.4229889]
[1720837201634,1.10589,3132.9,3132.7,2.4229889]
[1720837201840,3.10200482,3132.9,3132.7,2.4229889]
[1720837202039,1.10589,3132.8,3132.7,2.4229889]
[1720837202220,1.10589,3132.8,3132.7,0.1884989]
[1720837202421,1.10589,3132.8,3132.7,2.4229889]
[1720837204231,1.10590229,3132.8,3132.7,2.4229889]
[1720837206457,2.76904983,3132.8,3132.7,2.4229889]